Workbook

Sheet Skema 1
A1: Region Nordjylland, psykiatriske sygehuse.
B2: Skema 1: Udgifter og indtægter på sygehusene/enhederne, eksklusiv omkostningssted 0001, Fælleskonto. (1.000 kr.)
A5: Sygehus | C5: 2023 | D5: 2022 | E5: 2021 | F5: 2020 | G5: Δ2022-2023 | H5: % afvigelse | I5: Begrundelse
A6: Region Nord, Voksen psykiatrien
A7: Region Nord, Voksen psykiatrien | B7: Hovedart 1: Lønninger | C7: 622942.486 | D7: 599781.522 | E7: 584483.212 | F7: 569466.684 | G7: =IF(ISERROR(C7- D7)=TRUE,"",C7 - D7) -> 23160.964 | H7: =IF(ISERROR((((C7- D7)/D7)*100)=TRUE),"",IF((((C7- D7)/D7)*100)<-7,FIXED(((C7- D7)/D7)*100, 1,TRUE) &"%" & "▼",IF((((C7- D7)/D7)*100)>7,FIXED(((C7- D7)/D7)*100, 1,TRUE) &"%" &"▲",FIXED(((C7- D7)/D7)*100, 1,TRUE)&"%"))) -> 3,9%
A8: Region Nord, Voksen psykiatrien | B8: Hovedart 2: Varekøb | C8: 16950.826 | D8: 19597.606 | E8: 19371.081 | F8: 33066.899 | G8: -2646.78 | H8: -13,5%▼
A9: Region Nord, Voksen psykiatrien | B9: Hovedart 4: Tjenesteydelser m.v. | C9: 106591.974 | D9: 100558.096 | E9: 91013.737 | F9: 100647.48 | G9: 6033.878 | H9: 6,0%
A10: Region Nord, Voksen psykiatrien | B10: Hovedart 5: Tilskud og overførsler | G10: 0
A11: Region Nord, Voksen psykiatrien | B11: Hovedart 6: Finansudgifter | G11: 0
A12: Region Nord, Voksen psykiatrien | B12: Hovedart 7: Indtægter | C12: -27602.365 | D12: -26626.709 | E12: -28254.274 | F12: -33351.564 | G12: -975.656 | H12: 3,7%
A13: Region Nord, Voksen psykiatrien | B13: Hovedart 8: Finansindtægter | G13: 0
A14: Region Nord, Voksen psykiatrien | B14: Hovedart 9: Interne udgifter og indtægter | C14: 11596.177 | D14: 11543.29 | E14: 11654.89 | F14: 6956.171 | G14: 52.887 | H14: 0,5%
A15: Region Nord, Voksen psykiatrien | B15: I alt | C15: =SUMIFS((C7:C14),(A7:A14),A15) -> 730479.098 | D15: =SUMIFS((D7:D14),(A7:A14),A15) -> 704853.805 | E15: =SUMIFS((E7:E14),(A7:A14),A15) -> 678268.646 | F15: =SUMIFS((F7:F14),(A7:A14),A15) -> 676785.67 | G15: 25625.293 | H15: 3,6%
A16: Region Nord,Børn-unge psykiatrien | G16: 0
A17: Region Nord,Børn-unge psykiatrien | B17: Hovedart 1: Lønninger | C17: 105439.011 | D17: 99577.862 | E17: 88991.983 | F17: 83875.979 | G17: 5861.149 | H17: 5,9%
A18: Region Nord,Børn-unge psykiatrien | B18: Hovedart 2: Varekøb | C18: 4011.116 | D18: 2804.505 | E18: 2923.588 | F18: 2588.019 | G18: 1206.611 | H18: 43,0%▲
A19: Region Nord,Børn-unge psykiatrien | B19: Hovedart 4: Tjenesteydelser m.v. | C19: 22073.01 | D19: 16838.89 | E19: 12737.117 | F19: 8533.663 | G19: 5234.12 | H19: 31,1%▲
A20: Region Nord,Børn-unge psykiatrien | B20: Hovedart 5: Tilskud og overførsler | G20: 0
A21: Region Nord,Børn-unge psykiatrien | B21: Hovedart 6: Finansudgifter | G21: 0
A22: Region Nord,Børn-unge psykiatrien | B22: Hovedart 7: Indtægter | C22: -983.706 | D22: -499.837 | E22: -919.146 | F22: -518.959 | G22: -483.869 | H22: 96,8%▲
A23: Region Nord,Børn-unge psykiatrien | B23: Hovedart 8: Finansindtægter | G23: 0
A24: Region Nord,Børn-unge psykiatrien | B24: Hovedart 9: Interne udgifter og indtægter | C24: 7664.444 | D24: 1850.986 | E24: 8260.229 | F24: 1749.147 | G24: 5813.458 | H24: 314,1%▲
A25: Region Nord,Børn-unge psykiatrien | B25: I alt | C25: =SUMIFS((C7:C24),(A7:A24),A25) -> 138203.875 | D25: =SUMIFS((D7:D24),(A7:A24),A25) -> 120572.406 | E25: =SUMIFS((E7:E24),(A7:A24),A25) -> 111993.771 | F25: =SUMIFS((F7:F24),(A7:A24),A25) -> 96227.849 | G25: 17631.469 | H25: 14,6%▲
A26: Ikke fordelte udgifter i Region Nord, psykiatri | G26: 0
A27: Ikke fordelte udgifter i Region Nord, psykiatri | B27: Hovedart 1: Lønninger | G27: 0
A28: Ikke fordelte udgifter i Region Nord, psykiatri | B28: Hovedart 2: Varekøb | G28: 0
A29: Ikke fordelte udgifter i Region Nord, psykiatri | B29: Hovedart 4: Tjenesteydelser m.v. | G29: 0
A30: Ikke fordelte udgifter i Region Nord, psykiatri | B30: Hovedart 5: Tilskud og overførsler | G30: 0
A31: Ikke fordelte udgifter i Region Nord, psykiatri | B31: Hovedart 6: Finansudgifter | G31: 0
A32: Ikke fordelte udgifter i Region Nord, psykiatri | B32: Hovedart 7: Indtægter | G32: 0
A33: Ikke fordelte udgifter i Region Nord, psykiatri | B33: Hovedart 8: Finansindtægter | G33: 0
A34: Ikke fordelte udgifter i Region Nord, psykiatri | B34: Hovedart 9: Interne udgifter og indtægter | G34: 0
A35: Ikke fordelte udgifter i Region Nord, psykiatri | B35: I alt | C35: =SUMIFS((C7:C34),(A7:A34),A35) -> 0 | D35: =SUMIFS((D7:D34),(A7:A34),A35) -> 0 | E35: =SUMIFS((E7:E34),(A7:A34),A35) -> 0 | F35: =SUMIFS((F7:F34),(A7:A34),A35) -> 0 | G35: 0

Sheet Skema 2
A1: Region Nordjylland, psykiatriske sygehuse.
B2: Skema 2: Fællesudgifter og -indtægter vedrørende sygehusene. (1.000 kr.)
A5: Sygehus | C5: 2023 | D5: 2022 | E5: 2021 | F5: 2020 | G5: Δ2022-2023 | H5: % afvigelse | I5: Begrundelse
A6: Region Nord, Voksen psykiatrien
A7: Region Nord, Voksen psykiatrien | B7: Hovedart 1: Lønninger | C7: 18942.613 | D7: 17707.641 | E7: 16382.876 | F7: 17068.176 | G7: =IF(ISERROR(C7- D7)=TRUE,"",C7 - D7) -> 1234.972 | H7: =IF(ISERROR((((C7- D7)/D7)*100)=TRUE),"",IF((((C7- D7)/D7)*100)<-7,FIXED(((C7- D7)/D7)*100, 1,TRUE) &"%" & "▼",IF((((C7- D7)/D7)*100)>7,FIXED(((C7- D7)/D7)*100, 1,TRUE) &"%" &"▲",FIXED(((C7- D7)/D7)*100, 1,TRUE)&"%"))) -> 7,0%
A8: Region Nord, Voksen psykiatrien | B8: Hovedart 2: Varekøb | C8: 8401.256 | D8: 3096.386 | E8: 7847.261 | F8: 7624.43 | G8: 5304.87 | H8: 171,3%▲
A9: Region Nord, Voksen psykiatrien | B9: Hovedart 4: Tjenesteydelser m.v. | C9: 24901.033 | D9: 30056.718 | E9: 23837.763 | F9: 21372.259 | G9: -5155.685 | H9: -17,2%▼
A10: Region Nord, Voksen psykiatrien | B10: Hovedart 5: Tilskud og overførsler | C10: 465.808 | G10: 465.808
A11: Region Nord, Voksen psykiatrien | B11: Hovedart 6: Finansudgifter | G11: 0
A12: Region Nord, Voksen psykiatrien | B12: Hovedart 7: Indtægter | C12: -1723.113 | D12: -649.571 | E12: -658.754 | F12: -819.023 | G12: -1073.542 | H12: 165,3%▲
A13: Region Nord, Voksen psykiatrien | B13: Hovedart 8: Finansindtægter | C13: -2911.919 | G13: -2911.919
A14: Region Nord, Voksen psykiatrien | B14: Hovedart 9: Interne udgifter og indtægter | C14: -11244.898 | D14: -6868.712 | E14: -6001.489 | F14: -5935.609 | G14: -4376.186 | H14: 63,7%▲
A15: Region Nord, Voksen psykiatrien | B15: I alt | C15: =SUMIFS((C7:C14),(A7:A14),A15) -> 36830.78 | D15: =SUMIFS((D7:D14),(A7:A14),A15) -> 43342.462 | E15: =SUMIFS((E7:E14),(A7:A14),A15) -> 41407.657 | F15: =SUMIFS((F7:F14),(A7:A14),A15) -> 39310.233 | G15: -6511.682 | H15: -15,0%▼
A16: Region Nord, Børn-unge psykiatrien | G16: 0
A17: Region Nord, Børn-unge psykiatrien | B17: Hovedart 1: Lønninger | C17: 5636.272 | D17: 3478.214 | E17: 3833.714 | F17: 2048.951 | G17: 2158.058 | H17: 62,0%▲
A18: Region Nord, Børn-unge psykiatrien | B18: Hovedart 2: Varekøb | C18: 2612.36 | D18: 664.016 | E18: 1914.955 | F18: 2178.668 | G18: 1948.344 | H18: 293,4%▲
A19: Region Nord, Børn-unge psykiatrien | B19: Hovedart 4: Tjenesteydelser m.v. | C19: 7121.772 | D19: 5865.108 | E19: 5441.33 | F19: 2508.612 | G19: 1256.664 | H19: 21,4%▲
A20: Region Nord, Børn-unge psykiatrien | B20: Hovedart 5: Tilskud og overførsler | C20: 141.925 | G20: 141.925
A21: Region Nord, Børn-unge psykiatrien | B21: Hovedart 6: Finansudgifter | G21: 0
A22: Region Nord, Børn-unge psykiatrien | B22: Hovedart 7: Indtægter | C22: -437.912 | D22: -121.441 | E22: -149.127 | F22: -96.337 | G22: -316.471 | H22: 260,6%▲
A23: Region Nord, Børn-unge psykiatrien | B23: Hovedart 8: Finansindtægter | C23: -887.22 | G23: -887.22
A24: Region Nord, Børn-unge psykiatrien | B24: Hovedart 9: Interne udgifter og indtægter | C24: -3440.67 | D24: -1377.347 | E24: -1489.261 | F24: -681.317 | G24: -2063.323 | H24: 149,8%▲
A25: Region Nord, Børn-unge psykiatrien | B25: I alt | C25: =SUMIFS((C7:C24),(A7:A24),A25) -> 10746.527 | D25: =SUMIFS((D7:D24),(A7:A24),A25) -> 8508.55 | E25: =SUMIFS((E7:E24),(A7:A24),A25) -> 9551.611 | F25: =SUMIFS((F7:F24),(A7:A24),A25) -> 5958.577 | G25: 2237.977 | H25: 26,3%▲
A26: Ikke fordelte udgifter i Region Nord, psykiatri | G26: 0
A27: Ikke fordelte udgifter i Region Nord, psykiatri | B27: Hovedart 1: Lønninger | G27: 0
A28: Ikke fordelte udgifter i Region Nord, psykiatri | B28: Hovedart 2: Varekøb | G28: 0
A29: Ikke fordelte udgifter i Region Nord, psykiatri | B29: Hovedart 4: Tjenesteydelser m.v. | G29: 0
A30: Ikke fordelte udgifter i Region Nord, psykiatri | B30: Hovedart 5: Tilskud og overførsler | G30: 0
A31: Ikke fordelte udgifter i Region Nord, psykiatri | B31: Hovedart 6: Finansudgifter | G31: 0
A32: Ikke fordelte udgifter i Region Nord, psykiatri | B32: Hovedart 7: Indtægter | G32: 0
A33: Ikke fordelte udgifter i Region Nord, psykiatri | B33: Hovedart 8: Finansindtægter | G33: 0
A34: Ikke fordelte udgifter i Region Nord, psykiatri | B34: Hovedart 9: Interne udgifter og indtægter | G34: 0
A35: Ikke fordelte udgifter i Region Nord, psykiatri | B35: I alt | C35: =SUMIFS((C7:C34),(A7:A34),A35) -> 0 | D35: =SUMIFS((D7:D34),(A7:A34),A35) -> 0 | E35: =SUMIFS((E7:E34),(A7:A34),A35) -> 0 | F35: =SUMIFS((F7:F34),(A7:A34),A35) -> 0 | G35: 0

Sheet Skema 3
A1: Region Nordjylland, psykiatriske sygehuse.
B2: Skema 3:Regionale fællesudgifter og -indtægter. (1.000 kr.)
A5: Sygehus | C5: 2023 | D5: 2022 | E5: 2021 | F5: 2020 | G5: Δ2022-2023 | H5: % afvigelse | I5: Begrundelse
A6: Region Nord, Voksen psykiatrien
A7: Region Nord, Voksen psykiatrien | B7: 1.70.50: Andel af fællesudgifter | C7: 24787.385 | D7: 24108.344 | E7: 22210.048 | F7: 23397.079 | G7: =IF(ISERROR(C7- D7)=TRUE,"",C7 - D7) -> 679.041 | H7: =IF(ISERROR((((C7- D7)/D7)*100)=TRUE),"",IF((((C7- D7)/D7)*100)<-7,FIXED(((C7- D7)/D7)*100, 1,TRUE) &"%" & "▼",IF((((C7- D7)/D7)*100)>7,FIXED(((C7- D7)/D7)*100, 1,TRUE) &"%" &"▲",FIXED(((C7- D7)/D7)*100, 1,TRUE)&"%"))) -> 2,8%
A8: Region Nord, Voksen psykiatrien | B8: 1.60.40: Andel af central administration af sundhed (til og med 2019) | G8: 0
A9: Region Nord, Voksen psykiatrien | B9: 1.60.41: Andel af øvrige udgifter og indtægter | C9: 384.143 | D9: 334.232 | E9: 292.476 | F9: 451.505 | G9: 49.911 | H9: 14,9%▲
A10: Region Nord, Voksen psykiatrien | B10: 1.50.33: Andel af central administration af sundhed (ekskl. psykiatri) | G10: 0
A11: Region Nord, Voksen psykiatrien | B11: 1.50.35: Administration af det psykiatriske område (kun central del) | C11: 3017.859 | D11: 3504.792 | E11: 3479.142 | F11: 3530.376 | G11: -486.933 | H11: -13,9%▼
A12: Region Nord, Voksen psykiatrien | B12: I alt | C12: =SUMIFS((C7:C11),(A7:A11),A12) -> 28189.387 | D12: =SUMIFS((D7:D11),(A7:A11),A12) -> 27947.368 | E12: =SUMIFS((E7:E11),(A7:A11),A12) -> 25981.666 | F12: =SUMIFS((F7:F11),(A7:A11),A12) -> 27378.96 | G12: 242.019 | H12: 0,9%
A13: Region Nord, Børn-unge psykiatrien | G13: 0
A14: Region Nord, Børn-unge psykiatrien | B14: 1.70.50: Andel af fællesudgifter | C14: 7552.361 | D14: 4817.1 | E14: 5447.23 | F14: 2692.885 | G14: 2735.261 | H14: 56,8%▲
A15: Region Nord, Børn-unge psykiatrien | B15: 1.60.40: Andel af central administration af sundhed (til og med 2019) | G15: 0
A16: Region Nord, Børn-unge psykiatrien | B16: 1.60.41: Andel af øvrige udgifter og indtægter | C16: 117.043 | D16: 66.783 | E16: 71.733 | F16: 51.966 | G16: 50.26 | H16: 75,3%▲
A17: Region Nord, Børn-unge psykiatrien | B17: 1.50.33: Andel af central administration af sundhed (ekskl. psykiatri) | G17: 0
A18: Region Nord, Børn-unge psykiatrien | B18: 1.50.35: Administration af det psykiatriske område (kun central del) | C18: 919.498 | D18: 700.294 | E18: 853.293 | F18: 406.328 | G18: 219.204 | H18: 31,3%▲
A19: Region Nord, Børn-unge psykiatrien | B19: I alt | C19: =SUMIFS((C7:C18),(A7:A18),A19) -> 8588.902 | D19: =SUMIFS((D7:D18),(A7:A18),A19) -> 5584.177 | E19: =SUMIFS((E7:E18),(A7:A18),A19) -> 6372.256 | F19: =SUMIFS((F7:F18),(A7:A18),A19) -> 3151.179 | G19: 3004.725 | H19: 53,8%▲
A20: Ikke fordelte udgifter i Region Nord, psykiatri | G20: 0
A21: Ikke fordelte udgifter i Region Nord, psykiatri | B21: 1.70.50: Andel af fællesudgifter | G21: 0
A22: Ikke fordelte udgifter i Region Nord, psykiatri | B22: 1.60.40: Andel af central administration af sundhed (til og med 2019) | G22: 0
A23: Ikke fordelte udgifter i Region Nord, psykiatri | B23: 1.60.41: Andel af øvrige udgifter og indtægter | G23: 0
A24: Ikke fordelte udgifter i Region Nord, psykiatri | B24: 1.50.33: Andel af central administration af sundhed (ekskl. psykiatri) | G24: 0
A25: Ikke fordelte udgifter i Region Nord, psykiatri | B25: 1.50.35: Administration af det psykiatriske område (kun central del) | G25: 0
A26: Ikke fordelte udgifter i Region Nord, psykiatri | B26: I alt | C26: =SUMIFS((C7:C25),(A7:A25),A26) -> 0 | D26: =SUMIFS((D7:D25),(A7:A25),A26) -> 0 | E26: =SUMIFS((E7:E25),(A7:A25),A26) -> 0 | F26: =SUMIFS((F7:F25),(A7:A25),A26) -> 0 | G26: 0

Sheet Skema 4
A1: Region Nordjylland, psykiatriske sygehuse.
B2: Skema 4: Udgifter og indtægter til og fra psykiatriske afdelinger konteret på somatiske sygehuse. (1.000 kr.)
A5: Sygehus | C5: 2023 | D5: 2022 | E5: 2021 | F5: 2020 | G5: Δ2022-2023 | H5: % afvigelse | I5: Begrundelse
A6: Region Nord, Voksen psykiatrien
A7: Region Nord, Voksen psykiatrien | B7: Korrektion | G7: =IF(ISERROR(C7- D7)=TRUE,"",C7 - D7) -> 0 | H7: =IF(ISERROR((((C7- D7)/D7)*100)=TRUE),"",IF((((C7- D7)/D7)*100)<-7,FIXED(((C7- D7)/D7)*100, 1,TRUE) &"%" & "▼",IF((((C7- D7)/D7)*100)>7,FIXED(((C7- D7)/D7)*100, 1,TRUE) &"%" &"▲",FIXED(((C7- D7)/D7)*100, 1,TRUE)&"%"))) -> 
A8: Region Nord, Voksen psykiatrien | B8: Lønudg. på psyk. afd.,somatiske sygehuse | G8: 0
A9: Region Nord, Voksen psykiatrien | B9: Øvrige udg. til psyk. afd.,somatiske sygehuse | G9: 0
A10: Region Nord, Voksen psykiatrien | B10: I alt | C10: =SUMIFS((C7:C9),(A7:A9),A10) -> 0 | D10: =SUMIFS((D7:D9),(A7:A9),A10) -> 0 | E10: =SUMIFS((E7:E9),(A7:A9),A10) -> 0 | F10: =SUMIFS((F7:F9),(A7:A9),A10) -> 0 | G10: 0
A11: Region Nord, Børn-unge psykiatrien | G11: 0
A12: Region Nord, Børn-unge psykiatrien | B12: Korrektion | G12: 0
A13: Region Nord, Børn-unge psykiatrien | B13: Lønudg. på psyk. afd.,somatiske sygehuse | G13: 0
A14: Region Nord, Børn-unge psykiatrien | B14: Øvrige udg. til psyk. afd.,somatiske sygehuse | G14: 0
A15: Region Nord, Børn-unge psykiatrien | B15: I alt | C15: =SUMIFS((C7:C14),(A7:A14),A15) -> 0 | D15: =SUMIFS((D7:D14),(A7:A14),A15) -> 0 | E15: =SUMIFS((E7:E14),(A7:A14),A15) -> 0 | F15: =SUMIFS((F7:F14),(A7:A14),A15) -> 0 | G15: 0
A16: Ikke fordelte udgifter i Region Nord, psykiatri | G16: 0
A17: Ikke fordelte udgifter i Region Nord, psykiatri | B17: Korrektion | G17: 0
A18: Ikke fordelte udgifter i Region Nord, psykiatri | B18: Lønudg. på psyk. afd.,somatiske sygehuse | G18: 0
A19: Ikke fordelte udgifter i Region Nord, psykiatri | B19: Øvrige udg. til psyk. afd.,somatiske sygehuse | G19: 0
A20: Ikke fordelte udgifter i Region Nord, psykiatri | B20: I alt | C20: =SUMIFS((C7:C19),(A7:A19),A20) -> 0 | D20: =SUMIFS((D7:D19),(A7:A19),A20) -> 0 | E20: =SUMIFS((E7:E19),(A7:A19),A20) -> 0 | F20: =SUMIFS((F7:F19),(A7:A19),A20) -> 0 | G20: 0

Sheet Skema 5
A1: Region Nordjylland, psykiatriske sygehuse.
B2: Skema 5: Leasing- og huslejeudgifter. (1.000 kr.)
A5: Sygehus | C5: 2023 | D5: 2022 | E5: 2021 | F5: 2020 | G5: Δ2022-2023 | H5: % afvigelse | I5: Begrundelse
A6: RegionNord, Voksen psykiatrien
A7: RegionNord, Voksen psykiatrien | B7: Andre udgifter | G7: =IF(ISERROR(C7- D7)=TRUE,"",C7 - D7) -> 0 | H7: =IF(ISERROR((((C7- D7)/D7)*100)=TRUE),"",IF((((C7- D7)/D7)*100)<-7,FIXED(((C7- D7)/D7)*100, 1,TRUE) &"%" & "▼",IF((((C7- D7)/D7)*100)>7,FIXED(((C7- D7)/D7)*100, 1,TRUE) &"%" &"▲",FIXED(((C7- D7)/D7)*100, 1,TRUE)&"%"))) -> 
A8: RegionNord, Voksen psykiatrien | B8: Leasing- og lejeudgifter | C8: 415.969 | D8: 1020.05 | E8: 1051.559 | F8: 844.391 | G8: -604.081 | H8: -59,2%▼
A9: RegionNord, Voksen psykiatrien | B9: Huslejeudgifter | C9: 1758.06 | D9: 1821.592 | E9: 1662.596 | F9: 1837.451 | G9: -63.532 | H9: -3,5%
A10: RegionNord, Voksen psykiatrien | B10: I alt | C10: =SUMIFS((C7:C9),(A7:A9),A10) -> 2174.029 | D10: =SUMIFS((D7:D9),(A7:A9),A10) -> 2841.642 | E10: =SUMIFS((E7:E9),(A7:A9),A10) -> 2714.155 | F10: =SUMIFS((F7:F9),(A7:A9),A10) -> 2681.842 | G10: -667.613 | H10: -23,5%▼
A11: Region Nord, Børn-unge psykiatrien | G11: 0
A12: Region Nord, Børn-unge psykiatrien | B12: Andre udgifter | G12: 0
A13: Region Nord, Børn-unge psykiatrien | B13: Leasing- og lejeudgifter | C13: 126.47 | D13: 203.813 | E13: 257.905 | F13: 97.185 | G13: -77.343 | H13: -37,9%▼
A14: Region Nord, Børn-unge psykiatrien | B14: Huslejeudgifter | C14: 535.656 | D14: 363.973 | E14: 407.768 | F14: 211.481 | G14: 171.683 | H14: 47,2%▲
A15: Region Nord, Børn-unge psykiatrien | B15: I alt | C15: =SUMIFS((C7:C14),(A7:A14),A15) -> 662.126 | D15: =SUMIFS((D7:D14),(A7:A14),A15) -> 567.786 | E15: =SUMIFS((E7:E14),(A7:A14),A15) -> 665.673 | F15: =SUMIFS((F7:F14),(A7:A14),A15) -> 308.666 | G15: 94.34 | H15: 16,6%▲
A16: Ikke fordelte udgifter i Region Nord, psykiatri | G16: 0
A17: Ikke fordelte udgifter i Region Nord, psykiatri | B17: Andre udgifter | G17: 0
A18: Ikke fordelte udgifter i Region Nord, psykiatri | B18: Leasing- og lejeudgifter | G18: 0
A19: Ikke fordelte udgifter i Region Nord, psykiatri | B19: Huslejeudgifter | G19: 0
A20: Ikke fordelte udgifter i Region Nord, psykiatri | B20: I alt | C20: =SUMIFS((C7:C19),(A7:A19),A20) -> 0 | D20: =SUMIFS((D7:D19),(A7:A19),A20) -> 0 | E20: =SUMIFS((E7:E19),(A7:A19),A20) -> 0 | F20: =SUMIFS((F7:F19),(A7:A19),A20) -> 0 | G20: 0

Sheet Skema 6
A1: Region Nordjylland, psykiatriske sygehuse.
B2: Skema 6: Udgifter til andet end patientbehandling. (1.000 kr.)
A5: Sygehus | C5: 2023 | D5: 2022 | E5: 2021 | F5: 2020 | G5: Δ2022-2023 | H5: % afvigelse | I5: Begrundelse
A6: Region Nord, Voksen psykiatrien
A7: Region Nord, Voksen psykiatrien | B7: Skema 6.1: Center for voldsramte (Bispebjerg) | G7: =IF(ISERROR(C7- D7)=TRUE,"",C7 - D7) -> 0 | H7: =IF(ISERROR((((C7- D7)/D7)*100)=TRUE),"",IF((((C7- D7)/D7)*100)<-7,FIXED(((C7- D7)/D7)*100, 1,TRUE) &"%" & "▼",IF((((C7- D7)/D7)*100)>7,FIXED(((C7- D7)/D7)*100, 1,TRUE) &"%" &"▲",FIXED(((C7- D7)/D7)*100, 1,TRUE)&"%"))) -> 
A8: Region Nord, Voksen psykiatrien | B8: Skema 6.2: Ventilatørbistand i hjemmet, respiratorpatienter | G8: 0
A9: Region Nord, Voksen psykiatrien | B9: Skema 6.3: Blodprøvetagning i eget hjem | G9: 0
A10: Region Nord, Voksen psykiatrien | B10: Skema 6.4: Psykinfo + pårørende | C10: 2925.309 | D10: 3666.575 | E10: 4053.175 | F10: 4329.419 | G10: -741.266 | H10: -20,2%▼
A11: Region Nord, Voksen psykiatrien | B11: Skema 6.5: Leveret udstyr til patienter i eget hjem, ilt og sonderemedier | G11: 0
A12: Region Nord, Voksen psykiatrien | B12: Skema 6.6: Montebello (Nordsjællands Hospitaler) | G12: 0
A13: Region Nord, Voksen psykiatrien | B13: Skema 6.7: Satspulje korrektioner mellem år | G13: 0
A14: Region Nord, Voksen psykiatrien | B14: Skema 6.8: Klinisk farmakologisk rådgivning af praksissektoren | G14: 0
A15: Region Nord, Voksen psykiatrien | B15: Skema 6.9: Tandregulering ifm. operation | G15: 0
A16: Region Nord, Voksen psykiatrien | B16: Skema 6.10: Giftlinjen | G16: 0
A17: Region Nord, Voksen psykiatrien | B17: Skema 6.11: Tjenestemandspensioner | G17: 0
A18: Region Nord, Voksen psykiatrien | B18: Skema 6.12: Art 4.6 Betalinger til staten | G18: 0
A19: Region Nord, Voksen psykiatrien | B19: Skema 6.13: Art 4.7 Betalinger til kommuner | G19: 0
A20: Region Nord, Voksen psykiatrien | B20: Skema 6.14: Art 4.8 Betalinger til andre regioner | C20: 15362.454 | D20: 16943.547 | E20: 15091.294 | F20: 19590.706 | G20: -1581.093 | H20: -9,3%▼
A21: Region Nord, Voksen psykiatrien | B21: Skema 6.15: Art 7.6 Betalinger fra staten | G21: 0
A22: Region Nord, Voksen psykiatrien | B22: Skema 6.16: Art 7.7 Betalinger fra kommuner | D22: -16151.235 | E22: -16308.424 | G22: 16151.235 | H22: -100,0%▼
A23: Region Nord, Voksen psykiatrien | B23: Skema 6.17: Art 7.8 Betalinger fra andre regioner | G23: 0
A24: Region Nord, Voksen psykiatrien | B24: Skema 6.18: Betalinger til selvejende, private og udenlandske sygehuse | C24: 1.104 | D24: 0.392 | E24: 2181.92 | F24: 2213.801 | G24: 0.712 | H24: 181,6%▲
A25: Region Nord, Voksen psykiatrien | B25: Skema 6.19: Dækningsafgift/ejendomsskat | C25: 2371.872 | D25: 2578.308 | E25: 2433.517 | F25: 2662.275 | G25: -206.436 | H25: -8,0%▼
A26: Region Nord, Voksen psykiatrien | B26: Skema 6.20: Forsikringer/erstatninger | G26: 0
A27: Region Nord, Voksen psykiatrien | B27: Skema 6.21: Vederlagsfri Lab. –ydelser og andre ydelser til praksissektoren | G27: 0
A28: Region Nord, Voksen psykiatrien | B28: Skema 6.22: Patienttransport | C28: 3677.853 | D28: 3424.667 | E28: 2906.448 | F28: 3240.03 | G28: 253.186 | H28: 7,4%▲
A29: Region Nord, Voksen psykiatrien | B29: Skema 6.23: Serviceydelser til/fra andre institutioner eller sygehuse udenfor regionen | G29: 0
A30: Region Nord, Voksen psykiatrien | B30: Skema 6.24: Udgifter til eksternt finansierede forskning | G30: 0
A31: Region Nord, Voksen psykiatrien | B31: Skema 6.25: Forebyggelse rettet mod praksissektoren og kommuner | G31: 0
A32: Region Nord, Voksen psykiatrien | B32: Skema 6.26: Praksisreservelæger | G32: 0
A33: Region Nord, Voksen psykiatrien | B33: Skema 6.27: Præhospital | G33: 0
A34: Region Nord, Voksen psykiatrien | B34: Skema 6.28: Udgifter til Danske Regioner (Kontigent, MedCom, Fællesproj.) | G34: 0
A35: Region Nord, Voksen psykiatrien | B35: Skema 6.29: Hospice | G35: 0
A36: Region Nord, Voksen psykiatrien | B36: Skema 6.30: Konsulenter(Praksis) | G36: 0
A37: Region Nord, Voksen psykiatrien | B37: Skema 6.31: Videnskabsetisk Komité | G37: 0
A38: Region Nord, Voksen psykiatrien | B38: Skema 6.32: Tolkebistand | C38: 194.808 | D38: 144.079 | E38: 141.686 | F38: 243.462 | G38: 50.729 | H38: 35,2%▲
A39: Region Nord, Voksen psykiatrien | B39: Skema 6.33: Dansk Center for Partikelterapi | G39: =IF(ISERROR(C39- D39)=TRUE,"",C39 - D39) -> 0 | H39: =IF(ISERROR((((C39- D39)/D39)*100)=TRUE),"",IF((((C39- D39)/D39)*100)<-7,FIXED(((C39- D39)/D39)*100, 1,TRUE) &"%" & "▼",IF((((C39- D39)/D39)*100)>7,FIXED(((C39- D39)/D39)*100, 1,TRUE) &"%" &"▲",FIXED(((C39- D39)/D39)*100, 1,TRUE)&"%"))) -> 
A40: Region Nord, Voksen psykiatrien | B40: Skema 6.34: Politisk organisation – overførte udgifter fra funktion 4.10.01, 4.10.02 og 4.10.04 | G40: 0
A41: Region Nord, Voksen psykiatrien | B41: Skema 6.35: Øvrige udgifter, Region Sjælland | G41: 0
A42: Region Nord, Voksen psykiatrien | B42: Skema 6.36: Sundhedsydelser ifm. specialsektor | G42: 0
A43: Region Nord, Voksen psykiatrien | B43: Skema 6.37: Udgifter til primær sundhed fra skema 2 | G43: 0
A44: Region Nord, Voksen psykiatrien | B44: Skema 6.38: Udgifter til primær sundhed fra skema 3 | G44: 0
A45: Region Nord, Voksen psykiatrien | B45: Skema 6.39: Særlige udgifter ifm. COVID-19 | D45: 569.313 | E45: 1066.466 | F45: 893.025 | G45: -569.313 | H45: -100,0%▼
A46: Region Nord, Voksen psykiatrien | B46: Skema 6.40: Udleveret udstyr/tilbehør ifm. cochlear implantater | G46: 0
A47: Region Nord, Voksen psykiatrien | B47: Skema 6.41: Luxturna-behandling, Rigshospitalet | G47: 0
A48: Region Nord, Voksen psykiatrien | B48: Skema 6.42: Udleveret medicin | G48: 0
A49: Region Nord, Voksen psykiatrien | B49: Skema 6.43: Udgifter ifm. sundhedsklynger | G49: 0
A50: Region Nord, Voksen psykiatrien | B50: Skema 6.44: Ukrainske patienter under særlov eller asyl | G50: 0
A51: Region Nord, Voksen psykiatrien | B51: Skema 6.45: Udgifter ifm. de særlige pladser i psykiatrien | C51: 14968.5 | G51: 14968.5
A52: Region Nord, Voksen psykiatrien | B52: Skema 6.46: Sikringsafdelingen, Region Sjælland | G52: 0
A53: Region Nord, Voksen psykiatrien | B53: Skema 6.47: Øvrige (Kan kun benyttes efter aftale med Sundhedsdatastyrelsen) | G53: 0
A54: Region Nord, Voksen psykiatrien | B54: Lukkede poster (må kun bruges af Sundhedsdatastyrelsen) | G54: 0
A55: Region Nord, Voksen psykiatrien | B55: I alt | C55: =SUMIFS((C7:C54),(A7:A54),A55) -> 39501.9 | D55: =SUMIFS((D7:D54),(A7:A54),A55) -> 11175.646 | E55: =SUMIFS((E7:E54),(A7:A54),A55) -> 11566.082 | F55: =SUMIFS((F7:F54),(A7:A54),A55) -> 33172.718 | G55: 28326.254 | H55: 253,5%▲
A56: Region Nord, Børn-unge psykiatrien | G56: 0
A57: Region Nord, Børn-unge psykiatrien | B57: Skema 6.1: Center for voldsramte (Bispebjerg) | G57: 0
A58: Region Nord, Børn-unge psykiatrien | B58: Skema 6.2: Ventilatørbistand i hjemmet, respiratorpatienter | G58: 0
A59: Region Nord, Børn-unge psykiatrien | B59: Skema 6.3: Blodprøvetagning i eget hjem | G59: 0
A60: Region Nord, Børn-unge psykiatrien | B60: Skema 6.4: Psykinfo + pårørende | C60: 891.3 | D60: 732.62 | E60: 994.081 | F60: 498.294 | G60: 158.68 | H60: 21,7%▲
A61: Region Nord, Børn-unge psykiatrien | B61: Skema 6.5: Leveret udstyr til patienter i eget hjem, ilt og sonderemedier | G61: 0
A62: Region Nord, Børn-unge psykiatrien | B62: Skema 6.6: Montebello (Nordsjællands Hospitaler) | G62: 0
A63: Region Nord, Børn-unge psykiatrien | B63: Skema 6.7: Satspulje korrektioner mellem år | G63: 0
A64: Region Nord, Børn-unge psykiatrien | B64: Skema 6.8: Klinisk farmakologisk rådgivning af praksissektoren | G64: 0
A65: Region Nord, Børn-unge psykiatrien | B65: Skema 6.9: Tandregulering ifm. operation | G65: 0
A66: Region Nord, Børn-unge psykiatrien | B66: Skema 6.10: Giftlinjen | G66: 0
A67: Region Nord, Børn-unge psykiatrien | B67: Skema 6.11: Tjenestemandspensioner | G67: 0
A68: Region Nord, Børn-unge psykiatrien | B68: Skema 6.12: Art 4.6 Betalinger til staten | G68: 0
A69: Region Nord, Børn-unge psykiatrien | B69: Skema 6.13: Art 4.7 Betalinger til kommuner | G69: 0
A70: Region Nord, Børn-unge psykiatrien | B70: Skema 6.14: Art 4.8 Betalinger til andre regioner | C70: 22591.724 | D70: 11720.749 | E70: 9572.514 | F70: 4397.179 | G70: 10870.975 | H70: 92,7%▲
A71: Region Nord, Børn-unge psykiatrien | B71: Skema 6.15: Art 7.6 Betalinger fra staten | G71: =IF(ISERROR(C71- D71)=TRUE,"",C71 - D71) -> 0 | H71: =IF(ISERROR((((C71- D71)/D71)*100)=TRUE),"",IF((((C71- D71)/D71)*100)<-7,FIXED(((C71- D71)/D71)*100, 1,TRUE) &"%" & "▼",IF((((C71- D71)/D71)*100)>7,FIXED(((C71- D71)/D71)*100, 1,TRUE) &"%" &"▲",FIXED(((C71- D71)/D71)*100, 1,TRUE)&"%"))) -> 
A72: Region Nord, Børn-unge psykiatrien | B72: Skema 6.16: Art 7.7 Betalinger fra kommuner | G72: 0
A73: Region Nord, Børn-unge psykiatrien | B73: Skema 6.17: Art 7.8 Betalinger fra andre regioner | G73: 0
A74: Region Nord, Børn-unge psykiatrien | B74: Skema 6.18: Betalinger til selvejende, private og udenlandske sygehuse | D74: 0.078 | E74: 535.137 | F74: 254.797 | G74: -0.078 | H74: -100,0%▼
A75: Region Nord, Børn-unge psykiatrien | B75: Skema 6.19: Dækningsafgift/ejendomsskat | C75: 722.675 | D75: 515.173 | E75: 596.844 | F75: 306.414 | G75: 207.502 | H75: 40,3%▲
A76: Region Nord, Børn-unge psykiatrien | B76: Skema 6.20: Forsikringer/erstatninger | G76: 0
A77: Region Nord, Børn-unge psykiatrien | B77: Skema 6.21: Vederlagsfri Lab. –ydelser og andre ydelser til praksissektoren | G77: 0
A78: Region Nord, Børn-unge psykiatrien | B78: Skema 6.22: Patienttransport | C78: 1120.589 | D78: 684.284 | E78: 712.835 | F78: 372.911 | G78: 436.305 | H78: 63,8%▲
A79: Region Nord, Børn-unge psykiatrien | B79: Skema 6.23: Serviceydelser til/fra andre institutioner eller sygehuse udenfor regionen | G79: 0
A80: Region Nord, Børn-unge psykiatrien | B80: Skema 6.24: Udgifter til eksternt finansierede forskning | G80: 0
A81: Region Nord, Børn-unge psykiatrien | B81: Skema 6.25: Forebyggelse rettet mod praksissektoren og kommuner | G81: 0
A82: Region Nord, Børn-unge psykiatrien | B82: Skema 6.26: Praksisreservelæger | G82: 0
A83: Region Nord, Børn-unge psykiatrien | B83: Skema 6.27: Præhospital | G83: 0
A84: Region Nord, Børn-unge psykiatrien | B84: Skema 6.28: Udgifter til Danske Regioner (Kontigent, MedCom, Fællesproj.) | G84: 0
A85: Region Nord, Børn-unge psykiatrien | B85: Skema 6.29: Hospice | G85: 0
A86: Region Nord, Børn-unge psykiatrien | B86: Skema 6.30: Konsulenter(Praksis) | G86: 0
A87: Region Nord, Børn-unge psykiatrien | B87: Skema 6.31: Videnskabsetisk Komité | G87: 0
A88: Region Nord, Børn-unge psykiatrien | B88: Skema 6.32: Tolkebistand | C88: 59.355 | D88: 28.789 | E88: 34.75 | F88: 28.021 | G88: 30.566 | H88: 106,2%▲
A89: Region Nord, Børn-unge psykiatrien | B89: Skema 6.33: Dansk Center for Partikelterapi | G89: 0
A90: Region Nord, Børn-unge psykiatrien | B90: Skema 6.34: Politisk organisation – overførte udgifter fra funktion 4.10.01, 4.10.02 og 4.10.04 | G90: 0
A91: Region Nord, Børn-unge psykiatrien | B91: Skema 6.35: Øvrige udgifter, Region Sjælland | G91: 0
A92: Region Nord, Børn-unge psykiatrien | B92: Skema 6.36: Sundhedsydelser ifm. specialsektor | G92: 0
A93: Region Nord, Børn-unge psykiatrien | B93: Skema 6.37: Udgifter til primær sundhed fra skema 2 | G93: 0
A94: Region Nord, Børn-unge psykiatrien | B94: Skema 6.38: Udgifter til primær sundhed fra skema 3 | G94: 0
A95: Region Nord, Børn-unge psykiatrien | B95: Skema 6.39: Særlige udgifter ifm. COVID-19 | D95: 113.755 | E95: 261.561 | F95: 103 | G95: -113.755 | H95: -100,0%▼
A96: Region Nord, Børn-unge psykiatrien | B96: Skema 6.40: Udleveret udstyr/tilbehør ifm. cochlear implantater | G96: 0
A97: Region Nord, Børn-unge psykiatrien | B97: Skema 6.41: Luxturna-behandling, Rigshospitalet | G97: 0
A98: Region Nord, Børn-unge psykiatrien | B98: Skema 6.42: Udleveret medicin | G98: 0
A99: Region Nord, Børn-unge psykiatrien | B99: Skema 6.43: Udgifter ifm. sundhedsklynger | G99: 0
A100: Region Nord, Børn-unge psykiatrien | B100: Skema 6.44: Ukrainske patienter under særlov eller asyl | G100: 0
A101: Region Nord, Børn-unge psykiatrien | B101: Skema 6.45: Udgifter ifm. de særlige pladser i psykiatrien | G101: 0
A102: Region Nord, Børn-unge psykiatrien | B102: Skema 6.46: Sikringsafdelingen, Region Sjælland | G102: 0
A103: Region Nord, Børn-unge psykiatrien | B103: Skema 6.47: Øvrige (Kan kun benyttes efter aftale med Sundhedsdatastyrelsen) | G103: =IF(ISERROR(C103- D103)=TRUE,"",C103 - D103) -> 0 | H103: =IF(ISERROR((((C103- D103)/D103)*100)=TRUE),"",IF((((C103- D103)/D103)*100)<-7,FIXED(((C103- D103)/D103)*100, 1,TRUE) &"%" & "▼",IF((((C103- D103)/D103)*100)>7,FIXED(((C103- D103)/D103)*100, 1,TRUE) &"%" &"▲",FIXED(((C103- D103)/D103)*100, 1,TRUE)&"%"))) -> 
A104: Region Nord, Børn-unge psykiatrien | B104: Lukkede poster (må kun bruges af Sundhedsdatastyrelsen) | G104: 0
A105: Region Nord, Børn-unge psykiatrien | B105: I alt | C105: =SUMIFS((C7:C104),(A7:A104),A105) -> 25385.643 | D105: =SUMIFS((D7:D104),(A7:A104),A105) -> 13795.448 | E105: =SUMIFS((E7:E104),(A7:A104),A105) -> 12707.722 | F105: =SUMIFS((F7:F104),(A7:A104),A105) -> 5960.616 | G105: 11590.195 | H105: 84,0%▲
A106: Ikke fordelte udgifter i Region Nord, psykiatri | G106: 0
A107: Ikke fordelte udgifter i Region Nord, psykiatri | B107: Skema 6.1: Center for voldsramte (Bispebjerg) | G107: 0
A108: Ikke fordelte udgifter i Region Nord, psykiatri | B108: Skema 6.2: Ventilatørbistand i hjemmet, respiratorpatienter | G108: 0
A109: Ikke fordelte udgifter i Region Nord, psykiatri | B109: Skema 6.3: Blodprøvetagning i eget hjem | G109: 0
A110: Ikke fordelte udgifter i Region Nord, psykiatri | B110: Skema 6.4: Psykinfo + pårørende | G110: 0
A111: Ikke fordelte udgifter i Region Nord, psykiatri | B111: Skema 6.5: Leveret udstyr til patienter i eget hjem, ilt og sonderemedier | G111: 0
A112: Ikke fordelte udgifter i Region Nord, psykiatri | B112: Skema 6.6: Montebello (Nordsjællands Hospitaler) | G112: 0
A113: Ikke fordelte udgifter i Region Nord, psykiatri | B113: Skema 6.7: Satspulje korrektioner mellem år | G113: 0
A114: Ikke fordelte udgifter i Region Nord, psykiatri | B114: Skema 6.8: Klinisk farmakologisk rådgivning af praksissektoren | G114: 0
A115: Ikke fordelte udgifter i Region Nord, psykiatri | B115: Skema 6.9: Tandregulering ifm. operation | G115: 0
A116: Ikke fordelte udgifter i Region Nord, psykiatri | B116: Skema 6.10: Giftlinjen | G116: 0
A117: Ikke fordelte udgifter i Region Nord, psykiatri | B117: Skema 6.11: Tjenestemandspensioner | G117: 0
A118: Ikke fordelte udgifter i Region Nord, psykiatri | B118: Skema 6.12: Art 4.6 Betalinger til staten | G118: 0
A119: Ikke fordelte udgifter i Region Nord, psykiatri | B119: Skema 6.13: Art 4.7 Betalinger til kommuner | G119: 0
A120: Ikke fordelte udgifter i Region Nord, psykiatri | B120: Skema 6.14: Art 4.8 Betalinger til andre regioner | G120: 0
A121: Ikke fordelte udgifter i Region Nord, psykiatri | B121: Skema 6.15: Art 7.6 Betalinger fra staten | G121: 0
A122: Ikke fordelte udgifter i Region Nord, psykiatri | B122: Skema 6.16: Art 7.7 Betalinger fra kommuner | G122: 0
A123: Ikke fordelte udgifter i Region Nord, psykiatri | B123: Skema 6.17: Art 7.8 Betalinger fra andre regioner | G123: 0
A124: Ikke fordelte udgifter i Region Nord, psykiatri | B124: Skema 6.18: Betalinger til selvejende, private og udenlandske sygehuse | G124: 0
A125: Ikke fordelte udgifter i Region Nord, psykiatri | B125: Skema 6.19: Dækningsafgift/ejendomsskat | G125: 0
A126: Ikke fordelte udgifter i Region Nord, psykiatri | B126: Skema 6.20: Forsikringer/erstatninger | G126: 0
A127: Ikke fordelte udgifter i Region Nord, psykiatri | B127: Skema 6.21: Vederlagsfri Lab. –ydelser og andre ydelser til praksissektoren | G127: 0
A128: Ikke fordelte udgifter i Region Nord, psykiatri | B128: Skema 6.22: Patienttransport | G128: 0
A129: Ikke fordelte udgifter i Region Nord, psykiatri | B129: Skema 6.23: Serviceydelser til/fra andre institutioner eller sygehuse udenfor regionen | G129: 0
A130: Ikke fordelte udgifter i Region Nord, psykiatri | B130: Skema 6.24: Udgifter til eksternt finansierede forskning | G130: 0
A131: Ikke fordelte udgifter i Region Nord, psykiatri | B131: Skema 6.25: Forebyggelse rettet mod praksissektoren og kommuner | G131: 0
A132: Ikke fordelte udgifter i Region Nord, psykiatri | B132: Skema 6.26: Praksisreservelæger | G132: 0
A133: Ikke fordelte udgifter i Region Nord, psykiatri | B133: Skema 6.27: Præhospital | G133: 0
A134: Ikke fordelte udgifter i Region Nord, psykiatri | B134: Skema 6.28: Udgifter til Danske Regioner (Kontigent, MedCom, Fællesproj.) | G134: 0
A135: Ikke fordelte udgifter i Region Nord, psykiatri | B135: Skema 6.29: Hospice | G135: =IF(ISERROR(C135- D135)=TRUE,"",C135 - D135) -> 0 | H135: =IF(ISERROR((((C135- D135)/D135)*100)=TRUE),"",IF((((C135- D135)/D135)*100)<-7,FIXED(((C135- D135)/D135)*100, 1,TRUE) &"%" & "▼",IF((((C135- D135)/D135)*100)>7,FIXED(((C135- D135)/D135)*100, 1,TRUE) &"%" &"▲",FIXED(((C135- D135)/D135)*100, 1,TRUE)&"%"))) -> 
A136: Ikke fordelte udgifter i Region Nord, psykiatri | B136: Skema 6.30: Konsulenter(Praksis) | G136: 0
A137: Ikke fordelte udgifter i Region Nord, psykiatri | B137: Skema 6.31: Videnskabsetisk Komité | G137: 0
A138: Ikke fordelte udgifter i Region Nord, psykiatri | B138: Skema 6.32: Tolkebistand | G138: 0
A139: Ikke fordelte udgifter i Region Nord, psykiatri | B139: Skema 6.33: Dansk Center for Partikelterapi | G139: 0
A140: Ikke fordelte udgifter i Region Nord, psykiatri | B140: Skema 6.34: Politisk organisation – overførte udgifter fra funktion 4.10.01, 4.10.02 og 4.10.04 | G140: 0
A141: Ikke fordelte udgifter i Region Nord, psykiatri | B141: Skema 6.35: Øvrige udgifter, Region Sjælland | G141: 0
A142: Ikke fordelte udgifter i Region Nord, psykiatri | B142: Skema 6.36: Sundhedsydelser ifm. specialsektor | G142: 0
A143: Ikke fordelte udgifter i Region Nord, psykiatri | B143: Skema 6.37: Udgifter til primær sundhed fra skema 2 | G143: 0
A144: Ikke fordelte udgifter i Region Nord, psykiatri | B144: Skema 6.38: Udgifter til primær sundhed fra skema 3 | G144: 0
A145: Ikke fordelte udgifter i Region Nord, psykiatri | B145: Skema 6.39: Særlige udgifter ifm. COVID-19 | G145: 0
A146: Ikke fordelte udgifter i Region Nord, psykiatri | B146: Skema 6.40: Udleveret udstyr/tilbehør ifm. cochlear implantater | G146: 0
A147: Ikke fordelte udgifter i Region Nord, psykiatri | B147: Skema 6.41: Luxturna-behandling, Rigshospitalet | G147: 0
A148: Ikke fordelte udgifter i Region Nord, psykiatri | B148: Skema 6.42: Udleveret medicin | G148: 0
A149: Ikke fordelte udgifter i Region Nord, psykiatri | B149: Skema 6.43: Udgifter ifm. sundhedsklynger | G149: 0
A150: Ikke fordelte udgifter i Region Nord, psykiatri | B150: Skema 6.44: Ukrainske patienter under særlov eller asyl | G150: 0
A151: Ikke fordelte udgifter i Region Nord, psykiatri | B151: Skema 6.45: Udgifter ifm. de særlige pladser i psykiatrien | G151: 0
A152: Ikke fordelte udgifter i Region Nord, psykiatri | B152: Skema 6.46: Sikringsafdelingen, Region Sjælland | G152: 0
A153: Ikke fordelte udgifter i Region Nord, psykiatri | B153: Skema 6.47: Øvrige (Kan kun benyttes efter aftale med Sundhedsdatastyrelsen) | G153: 0
A154: Ikke fordelte udgifter i Region Nord, psykiatri | B154: Lukkede poster (må kun bruges af Sundhedsdatastyrelsen) | G154: 0
A155: Ikke fordelte udgifter i Region Nord, psykiatri | B155: I alt | C155: =SUMIFS((C7:C154),(A7:A154),A155) -> 0 | D155: =SUMIFS((D7:D154),(A7:A154),A155) -> 0 | E155: =SUMIFS((E7:E154),(A7:A154),A155) -> 0 | F155: =SUMIFS((F7:F154),(A7:A154),A155) -> 0 | G155: 0

Sheet Skema 7
A1: Region Nordjylland, psykiatriske sygehuse.
B2: Skema 7: Vederlagsfrie ydelser mellem sygehusene. (1.000 kr.)
A5: Sygehus | B5: 2023 | D5: 2023 | E5: 2022 | G5: 2022 | H5: 2021 | J5: 2021 | K5: 2020 | M5: 2020
B6: Leverede | C6: Modtagne | D6: Lev. - Mod. | E6: Leverede | F6: Modtagne | G6: Lev. - Mod. | H6: Leverede | I6: Modtagne | J6: Lev. - Mod. | K6: Leverede | L6: Modtagne | M6: Lev. - Mod.
A7: Region Nordjylland, Voksen psykiatrien | C7: 17511.199 | D7: =$B$7-$C$7 -> -17511.199 | F7: 18754.167 | G7: =$E$7-$F$7 -> -18754.167 | I7: 16469.986 | J7: =$H$7-$I$7 -> -16469.986 | L7: 1670.701 | M7: =$K$7-$L$7 -> -1670.701
A8: Region Nordjylland, Børn og unge psykiatrien, | C8: 5335.411 | D8: =$B$8-$C$8 -> -5335.411 | F8: 3747.279 | G8: =$E$8-$F$8 -> -3747.279 | I8: 4039.424 | J8: =$H$8-$I$8 -> -4039.424 | L8: 192.289 | M8: =$K$8-$L$8 -> -192.289
A9: Ikke fordelte udgifter i Region Nordjylland. psykiatri | D9: =$B$9-$C$9 -> 0 | G9: =$E$9-$F$9 -> 0 | J9: =$H$9-$I$9 -> 0 | M9: =$K$9-$L$9 -> 0
A10: I alt | B10: =SUM(B7:B9) -> 0 | C10: =SUM(C7:C9) -> 22846.61 | D10: =SUM(D7:D9) -> -22846.61 | E10: =SUM(E7:E9) -> 0 | F10: 22501.446 | G10: -22501.446 | H10: 0 | I10: 20509.41 | J10: -20509.41 | K10: =SUM(K7:K9) -> 0 | L10: 1862.99 | M10: -1862.99
A12: NB: Afstem med somatikken

Sheet Rapport
B2: Skema 1: Udgifter og indtægter på sygehusene/enhederne, eksklusiv omkostningssted 0001, Fælleskonto. (1.000 kr.)
C3: 2023 | D3: 2022 | E3: 2021 | F3: 2020
B4: Hovedart 1: Lønninger | C4: 0 | D4: 699359.384 | E4: 673475.195 | F4: 653342.663
B5: Hovedart 2: Varekøb | C5: 0 | D5: 22402.111 | E5: 22294.669 | F5: 35654.918
B6: Hovedart 4: Tjenesteydelser m.v. | C6: 0 | D6: 117396.986 | E6: 103750.854 | F6: 109181.143
B7: Hovedart 5: Tilskud og overførsler | C7: 0 | D7: 0 | E7: 0 | F7: 0
B8: Hovedart 6: Finansudgifter | C8: 0 | D8: 0 | E8: 0 | F8: 0
B9: Hovedart 7: Indtægter | C9: 0 | D9: -27126.546 | E9: -29173.42 | F9: -33870.523
B10: Hovedart 8: Finansindtægter | C10: 0 | D10: 0 | E10: 0 | F10: 0
B11: Hovedart 9: Interne udgifter og indtægter | C11: 0 | D11: 13394.276 | E11: 19915.119 | F11: 8705.318
B12: I alt | C12: 0 | D12: 825426.211 | E12: 790262.417 | F12: 773013.519
B14: Skema 2: Fællesudgifter og -indtægter vedrørende sygehusene. (1.000 kr.)
C15: 2023 | D15: 2022 | E15: 2021 | F15: 2020
B16: Hovedart 1: Lønninger | C16: 0 | D16: 21185.855 | E16: 20216.59 | F16: 19117.127
B17: Hovedart 2: Varekøb | C17: 0 | D17: 3760.402 | E17: 9762.216 | F17: 9803.098
B18: Hovedart 4: Tjenesteydelser m.v. | C18: 0 | D18: 35921.826 | E18: 29279.093 | F18: 23880.871
B19: Hovedart 5: Tilskud og overførsler | C19: 0 | D19: 0 | E19: 0 | F19: 0
B20: Hovedart 6: Finansudgifter | C20: 0 | D20: 0 | E20: 0 | F20: 0
B21: Hovedart 7: Indtægter | C21: 0 | D21: -771.012 | E21: -807.881 | F21: -915.36
B22: Hovedart 8: Finansindtægter | C22: 0 | D22: 0 | E22: 0 | F22: 0
B23: Hovedart 9: Interne udgifter og indtægter | C23: 0 | D23: -8246.059 | E23: -7490.75 | F23: -6616.926
B24: I alt | C24: 0 | D24: 51851.012 | E24: 50959.268 | F24: 45268.81
B26: Skema 3:Regionale fællesudgifter og -indtægter. (1.000 kr.)
C27: 2023 | D27: 2022 | E27: 2021 | F27: 2020
B28: 1.70.50: Andel af fællesudgifter | C28: 0 | D28: 28925.444 | E28: 27657.278 | F28: 26089.964
B29: 1.60.40: Andel af central administration af sundhed (til og med 2019) | C29: 0 | D29: 0 | E29: 0 | F29: 0
B30: 1.60.41: Andel af øvrige udgifter og indtægter | C30: 0 | D30: 401.015 | E30: 364.209 | F30: 503.471
B31: 1.50.33: Andel af central administration af sundhed (ekskl. psykiatri) | C31: 0 | D31: 0 | E31: 0 | F31: 0
B32: 1.50.35: Administration af det psykiatriske område (kun central del) | C32: 0 | D32: 4205.086 | E32: 4332.435 | F32: 3936.704
B33: I alt | C33: 0 | D33: 33531.545 | E33: 32353.922 | F33: 30530.139
B35: Skema 4: Udgifter og indtægter til og fra psykiatriske afdelinger konteret på somatiske sygehuse. (1.000 kr.)
C36: 2023 | D36: 2022 | E36: 2021 | F36: 2020
B37: Korrektion | C37: 0 | D37: 0 | E37: 0 | F37: 0
B38: Lønudg. på psyk. afd.,somatiske sygehuse | C38: 0 | D38: 0 | E38: 0 | F38: 0
B39: Øvrige udg. til psyk. afd.,somatiske sygehuse | C39: 0 | D39: 0 | E39: 0 | F39: 0
B40: I alt | C40: 0 | D40: 0 | E40: 0 | F40: 0
B42: Skema 5: Leasing- og huslejeudgifter. (1.000 kr.)
C43: 2023 | D43: 2022 | E43: 2021 | F43: 2020
B44: Andre udgifter | C44: 0 | D44: 0 | E44: 0 | F44: 0
B45: Leasing- og lejeudgifter | C45: 0 | D45: 1223.863 | E45: 1309.464 | F45: 941.576
B46: Huslejeudgifter | C46: 0 | D46: 2185.565 | E46: 2070.364 | F46: 2048.932
B47: I alt | C47: 0 | D47: 3409.428 | E47: 3379.828 | F47: 2990.508
B49: Skema 6: Udgifter til andet end patientbehandling. (1.000 kr.)
C50: 2023 | D50: 2022 | E50: 2021 | F50: 2020
B51: Skema 6.1: Center for voldsramte (Bispebjerg) | C51: 0 | D51: 0 | E51: 0 | F51: 0
B52: Skema 6.2: Ventilatørbistand i hjemmet, respiratorpatienter | C52: 0 | D52: 0 | E52: 0 | F52: 0
B53: Skema 6.3: Blodprøvetagning i eget hjem | C53: 0 | D53: 0 | E53: 0 | F53: 0
B54: Skema 6.4: Psykinfo + pårørende | C54: 0 | D54: 4399.195 | E54: 5047.256 | F54: 4827.713
B55: Skema 6.5: Leveret udstyr til patienter i eget hjem, ilt og sonderemedier | C55: 0 | D55: 0 | E55: 0 | F55: 0
B56: Skema 6.6: Montebello (Nordsjællands Hospitaler) | C56: 0 | D56: 0 | E56: 0 | F56: 0
B57: Skema 6.7: Satspulje korrektioner mellem år | C57: 0 | D57: 0 | E57: 0 | F57: 0
B58: Skema 6.8: Klinisk farmakologisk rådgivning af praksissektoren | C58: 0 | D58: 0 | E58: 0 | F58: 0
B59: Skema 6.9: Tandregulering ifm. operation | C59: 0 | D59: 0 | E59: 0 | F59: 0
B60: Skema 6.10: Giftlinjen | C60: 0 | D60: 0 | E60: 0 | F60: 0
B61: Skema 6.11: Tjenestemandspensioner | C61: 0 | D61: 0 | E61: 0 | F61: 0
B62: Skema 6.12: Art 4.6 Betalinger til staten | C62: 0 | D62: 0 | E62: 0 | F62: 0
B63: Skema 6.13: Art 4.7 Betalinger til kommuner | C63: 0 | D63: 0 | E63: 0 | F63: 0
B64: Skema 6.14: Art 4.8 Betalinger til andre regioner | C64: 0 | D64: 28664.296 | E64: 24663.808 | F64: 23987.885
B65: Skema 6.15: Art 7.6 Betalinger fra staten | C65: 0 | D65: 0 | E65: 0 | F65: 0
B66: Skema 6.16: Art 7.7 Betalinger fra kommuner | C66: 0 | D66: -16151.235 | E66: -16308.424 | F66: 0
B67: Skema 6.17: Art 7.8 Betalinger fra andre regioner | C67: 0 | D67: 0 | E67: 0 | F67: 0
B68: Skema 6.18: Betalinger til selvejende, private og udenlandske sygehuse | C68: 0 | D68: 0.47 | E68: 2717.057 | F68: 2468.598
B69: Skema 6.19: Dækningsafgift/ejendomsskat | C69: 0 | D69: 3093.481 | E69: 3030.361 | F69: 2968.689
B70: Skema 6.20: Forsikringer/erstatninger | C70: 0 | D70: 0 | E70: 0 | F70: 0
B71: Skema 6.21: Vederlagsfri Lab. –ydelser og andre ydelser til praksissektoren | C71: 0 | D71: 0 | E71: 0 | F71: 0
B72: Skema 6.22: Patienttransport | C72: 0 | D72: 4108.951 | E72: 3619.283 | F72: 3612.941
B73: Skema 6.23: Serviceydelser til/fra andre institutioner eller sygehuse udenfor regionen | C73: 0 | D73: 0 | E73: 0 | F73: 0
B74: Skema 6.24: Udgifter til eksternt finansierede forskning | C74: 0 | D74: 0 | E74: 0 | F74: 0
B75: Skema 6.25: Forebyggelse rettet mod praksissektoren og kommuner | C75: 0 | D75: 0 | E75: 0 | F75: 0
B76: Skema 6.26: Praksisreservelæger | C76: 0 | D76: 0 | E76: 0 | F76: 0
B77: Skema 6.27: Præhospital | C77: 0 | D77: 0 | E77: 0 | F77: 0
B78: Skema 6.28: Udgifter til Danske Regioner (Kontigent, MedCom, Fællesproj.) | C78: 0 | D78: 0 | E78: 0 | F78: 0
B79: Skema 6.29: Hospice | C79: 0 | D79: 0 | E79: 0 | F79: 0
B80: Skema 6.30: Konsulenter(Praksis) | C80: 0 | D80: 0 | E80: 0 | F80: 0
B81: Skema 6.31: Videnskabsetisk Komité | C81: 0 | D81: 0 | E81: 0 | F81: 0
B82: Skema 6.32: Tolkebistand | C82: 0 | D82: 172.868 | E82: 176.436 | F82: 271.483
B83: Skema 6.33: Dansk Center for Partikelterapi | C83: 0 | D83: 0 | E83: 0 | F83: 0
B84: Skema 6.34: Politisk organisation – overførte udgifter fra funktion 4.10.01, 4.10.02 og 4.10.04 | C84: 0 | D84: 0 | E84: 0 | F84: 0
B85: Skema 6.35: Øvrige udgifter, Region Sjælland | C85: 0 | D85: 0 | E85: 0 | F85: 0
B86: Skema 6.36: Sundhedsydelser ifm. specialsektor | C86: 0 | D86: 0 | E86: 0 | F86: 0
B87: Skema 6.37: Udgifter til primær sundhed fra skema 2 | C87: 0 | D87: 0 | E87: 0 | F87: 0
B88: Skema 6.38: Udgifter til primær sundhed fra skema 3 | C88: 0 | D88: 0 | E88: 0 | F88: 0
B89: Skema 6.39: Særlige udgifter ifm. COVID-19 | C89: 0 | D89: 683.068 | E89: 1328.027 | F89: 996.025
B90: Skema 6.40: Udleveret udstyr/tilbehør ifm. cochlear implantater | C90: 0 | D90: 0 | E90: 0 | F90: 0
B91: Skema 6.41: Luxturna-behandling, Rigshospitalet | C91: 0 | D91: 0 | E91: 0 | F91: 0
B92: Skema 6.42: Udleveret medicin | C92: 0 | D92: 0 | E92: 0 | F92: 0
B93: Skema 6.43: Udgifter ifm. sundhedsklynger | C93: 0 | D93: 0 | E93: 0 | F93: 0
B94: Skema 6.44: Ukrainske patienter under særlov eller asyl | C94: 0 | D94: 0 | E94: 0 | F94: 0
B95: Skema 6.45: Udgifter ifm. de særlige pladser i psykiatrien | C95: 0 | D95: 0 | E95: 0 | F95: 0
B96: Skema 6.46: Sikringsafdelingen, Region Sjælland | C96: 0 | D96: 0 | E96: 0 | F96: 0
B97: Skema 6.47: Øvrige (Kan kun benyttes efter aftale med Sundhedsdatastyrelsen) | C97: 0 | D97: 0 | E97: 0 | F97: 0
B98: Lukkede poster (må kun bruges af Sundhedsdatastyrelsen) | C98: 0 | D98: 0 | E98: 0 | F98: 0
B99: I alt | C99: 0 | D99: 24971.094 | E99: 24273.804 | F99: 39133.334

Sheet Rapport SGH
A1: 2023 | B1: Skema 1 | C1: Skema 2 | D1: Skema 3 | E1: Skema 4 | F1: Skema 5 | G1: Skema 6 | H1: Skema 7 | I1: I alt
A2: Region Nord, Voksen psykiatrien | B2: 0 | C2: 0 | D2: 0 | E2: 0 | F2: 0 | G2: 0 | H2: 0 | I2: =(SUM(B2:D2))-(SUM(E2:H2)) -> 0
A3: Region Nord,Børn-unge psykiatrien | B3: 0 | C3: 0 | D3: 0 | E3: 0 | F3: 0 | G3: 0 | H3: 0 | I3: =(SUM(B3:D3))-(SUM(E3:H3)) -> 0
A4: Ikke fordelte udgifter i Region Nord, psykiatri | B4: 0 | C4: 0 | D4: 0 | E4: 0 | F4: 0 | G4: 0 | H4: 0 | I4: 0
A6: 2022
A7: Region Nord, Voksen psykiatrien | B7: 704853.805 | C7: 43342.462 | D7: 27947.368 | E7: 0 | F7: 2841.642 | G7: 11175.646 | H7: -18754.167 | I7: =(SUM(B7:D7))-(SUM(E7:H7)) -> 780880.514
A8: Region Nord,Børn-unge psykiatrien | B8: 120572.406 | C8: 8508.55 | D8: 5584.177 | E8: 0 | F8: 567.786 | G8: 13795.448 | H8: -3747.279 | I8: =(SUM(B8:D8))-(SUM(E8:H8)) -> 124049.178
A9: Ikke fordelte udgifter i Region Nord, psykiatri | B9: 0 | C9: 0 | D9: 0 | E9: 0 | F9: 0 | G9: 0 | H9: 0 | I9: 0

Sheet Afstemning af ikke fordelte
A1: Afstemning af Ikke fordelte indtægter- og udgifter
A2: 1.000 kr. | B2: 2023
A3: Skema 1 | B3: 0
A4: Skema 2 | B4: 0
A5: Skema 3 | B5: 0
A6: Skema 4 | B6: 0
A7: Skema 5 | B7: 0
A8: Skema 6 | B8: 0
A9: 1+2+3-4-5-6 | B9: =+B3+B4+B5-B6-B7-B8 -> 0
